{"text_format":"1","workbook":"xlsx","n_sheets":1,"sheets":["Presupuesto Bc"],"not_rendered":{"charts":0,"images":1,"macros":1,"external_links":0,"defined_names":6,"comments":1,"pivot_tables":0},"unopened":[],"bounds":{"document_bytes":16777216,"sheet_cells":100000,"rows_first":2000,"rows_last":500,"rows_between":2000,"halvings":0,"cell_chars":16384,"cell_head_chars":4096},"cells_cut":0,"cells_raw":0,"read":"whole","date_system":"1900"}

{"sheet":"Presupuesto Bc","index":0,"n_rows":128,"n_cols":4,"rows_kept":128,"cut":false,"hidden":false,"merged":[[0,2,0,3],[2,2,3,3],[4,2,4,3],[121,0,121,3],[122,0,122,3],[111,0,111,3],[112,0,112,3],[117,0,117,3],[119,0,119,3],[120,0,120,3],[105,0,105,3],[16,0,16,3],[5,2,5,3],[1,2,1,3],[2,0,3,1],[127,0,127,3],[107,0,107,3],[108,0,108,3],[109,0,109,3],[110,0,110,3],[113,0,113,3],[114,0,114,3],[115,0,115,3],[116,0,116,3],[126,0,126,3],[123,0,123,3],[124,0,124,3],[125,0,125,3],[118,0,118,3]]}
[null,null,"Documento básico 3"]
[null,null,"Ámbito temático \"B\": INTERCOOPERACIÓN"]
["CONVOCATORIA 2025 DEL PROGRAMA DE SUBVENCIONES DEL AYUNTAMIENTO DE BARCELONA PARA EL FORTALECIMIENTO DE LA ECONOMÍA SOCIAL Y SOLIDARIA Y PARA LA INTERCOOPERACIÓN EN LA ESTRATEGIA #ESSBCN2030 - ENFORTIM L’ESS 2025\n",null,"Modalidad \"Bc\": Proyectos de implementación y acciones de intercooperación significativos para el desarrollo de los proyectos de ciudad de la #ESSBCN2030 "]
[]
[null,null,"Atención: Rellenar las celdas en blanco y añadir las filas necesarias "]
[null,null,"Antea de rellenar, consultar anotaciones a pie de página"]
[]
["DATOS BÁSICOS"]
["Nombre de la persona jurídica"]
["NIF de la persona jurídica"]
["Título del proyecto subvencionable"]
["Importe total del proyecto subvencionable"]
["Importe imputable a la subvención municipal"]
["Importe de la aportación / Cofinanciación de la organización",{"$f":"B12-B13","v":0}]
["% del importe solicitado respecto al total del proyecto subvencionable",{"$f":"B13/B12","v":{"$error":"#DIV/0!"}},"* La cuantía de la subvención otorgada no superará el 80% del gasto total del proyecto a subvencionar."]
[]
["PREVISIÓN DE GASTOS DEL PROYECTO SUBVENCIONABLE"]
["Partidas","Importe imputable a la subvención municipal ","Importe de la aportación / Cofinanciación de la organización","Importe total del proyecto"]
["D1. Retribuciones y seguridad social (régimen general o socios/es cooperativistas en régimen de autónomos) del personal propio vinculado al proyecto (máximo 40% subvención)",{"$f":"SUM(B20:B23)","v":0},{"$f":"SUM(C20:C23)","v":0},{"$f":"SUM(DespesesProjecte[[#This Row],[Importe imputable a la subvención municipal ]],DespesesProjecte[[#This Row],[Importe de la aportación / Cofinanciación de la organización]])","v":0}]
[null,null,null,{"$f":"SUM(DespesesProjecte[[#This Row],[Importe imputable a la subvención municipal ]],DespesesProjecte[[#This Row],[Importe de la aportación / Cofinanciación de la organización]])","v":0}]
[null,null,null,{"$f":"SUM(DespesesProjecte[[#This Row],[Importe imputable a la subvención municipal ]],DespesesProjecte[[#This Row],[Importe de la aportación / Cofinanciación de la organización]])","v":0}]
[null,null,null,{"$f":"SUM(DespesesProjecte[[#This Row],[Importe imputable a la subvención municipal ]],DespesesProjecte[[#This Row],[Importe de la aportación / Cofinanciación de la organización]])","v":0}]
[null,null,null,{"$f":"SUM(DespesesProjecte[[#This Row],[Importe imputable a la subvención municipal ]],DespesesProjecte[[#This Row],[Importe de la aportación / Cofinanciación de la organización]])","v":0}]
["TOTAL DE GASTOS DE PERSONAL\nMáximo 40% del importe imputable a la subvención municipal si se trata de personal propio asignado al proyecto subvencionado",{"$f":"SUM(B19)","v":0},{"$f":"SUM(C19)","v":0},{"$f":"SUM(D19)","v":0}]
["D2. Trabajos realizados por profesionales y empresas externas directamente vinculadas al proyecto",{"$f":"SUM(B26:B28)","v":0},{"$f":"SUM(C26:C28)","v":0},{"$f":"SUM(DespesesProjecte[[#This Row],[Importe imputable a la subvención municipal ]],DespesesProjecte[[#This Row],[Importe de la aportación / Cofinanciación de la organización]])","v":0}]
[null,null,null,{"$f":"SUM(DespesesProjecte[[#This Row],[Importe imputable a la subvención municipal ]],DespesesProjecte[[#This Row],[Importe de la aportación / Cofinanciación de la organización]])","v":0}]
[null,null,null,{"$f":"SUM(DespesesProjecte[[#This Row],[Importe imputable a la subvención municipal ]],DespesesProjecte[[#This Row],[Importe de la aportación / Cofinanciación de la organización]])","v":0}]
[null,null,null,{"$f":"SUM(DespesesProjecte[[#This Row],[Importe imputable a la subvención municipal ]],DespesesProjecte[[#This Row],[Importe de la aportación / Cofinanciación de la organización]])","v":0}]
["D3. Adquisición de materiales y bienes consumibles íntegramente imputables al proyecto",{"$f":"SUM(B30:B32)","v":0},{"$f":"SUM(C30:C32)","v":0},{"$f":"SUM(DespesesProjecte[[#This Row],[Importe imputable a la subvención municipal ]],DespesesProjecte[[#This Row],[Importe de la aportación / Cofinanciación de la organización]])","v":0}]
[null,null,null,{"$f":"SUM(DespesesProjecte[[#This Row],[Importe imputable a la subvención municipal ]],DespesesProjecte[[#This Row],[Importe de la aportación / Cofinanciación de la organización]])","v":0}]
[null,null,null,{"$f":"SUM(DespesesProjecte[[#This Row],[Importe imputable a la subvención municipal ]],DespesesProjecte[[#This Row],[Importe de la aportación / Cofinanciación de la organización]])","v":0}]
[null,null,null,{"$f":"SUM(DespesesProjecte[[#This Row],[Importe imputable a la subvención municipal ]],DespesesProjecte[[#This Row],[Importe de la aportación / Cofinanciación de la organización]])","v":0}]
["D4. Transporte – mensajería imputables al proyecto",{"$f":"SUM(B34:B36)","v":0},{"$f":"SUM(C34:C36)","v":0},{"$f":"DespesesProjecte[[#This Row],[Importe imputable a la subvención municipal ]]+DespesesProjecte[[#This Row],[Importe de la aportación / Cofinanciación de la organización]]","v":0}]
[null,null,null,{"$f":"SUM(DespesesProjecte[[#This Row],[Importe imputable a la subvención municipal ]],DespesesProjecte[[#This Row],[Importe de la aportación / Cofinanciación de la organización]])","v":0}]
[null,null,null,{"$f":"SUM(DespesesProjecte[[#This Row],[Importe imputable a la subvención municipal ]],DespesesProjecte[[#This Row],[Importe de la aportación / Cofinanciación de la organización]])","v":0}]
[null,null,null,{"$f":"SUM(DespesesProjecte[[#This Row],[Importe imputable a la subvención municipal ]],DespesesProjecte[[#This Row],[Importe de la aportación / Cofinanciación de la organización]])","v":0}]
["D5. Publicidad y propaganda de las actividades directamente vinculadas al proyecto ",{"$f":"SUM(B38:B40)","v":0},{"$f":"SUM(C38:C40)","v":0},{"$f":"SUM(DespesesProjecte[[#This Row],[Importe imputable a la subvención municipal ]],DespesesProjecte[[#This Row],[Importe de la aportación / Cofinanciación de la organización]])","v":0}]
[null,null,null,{"$f":"SUM(DespesesProjecte[[#This Row],[Importe imputable a la subvención municipal ]],DespesesProjecte[[#This Row],[Importe de la aportación / Cofinanciación de la organización]])","v":0}]
[null,null,null,{"$f":"SUM(DespesesProjecte[[#This Row],[Importe imputable a la subvención municipal ]],DespesesProjecte[[#This Row],[Importe de la aportación / Cofinanciación de la organización]])","v":0}]
[null,null,null,{"$f":"SUM(DespesesProjecte[[#This Row],[Importe imputable a la subvención municipal ]],DespesesProjecte[[#This Row],[Importe de la aportación / Cofinanciación de la organización]])","v":0}]
["D6. Alojamiento y dietas, del personal contratante y voluntario, vinculados al proyecto",{"$f":"SUM(B42:B44)","v":0},{"$f":"SUM(C42:C44)","v":0},{"$f":"SUM(DespesesProjecte[[#This Row],[Importe imputable a la subvención municipal ]],DespesesProjecte[[#This Row],[Importe de la aportación / Cofinanciación de la organización]])","v":0}]
[null,null,null,{"$f":"SUM(DespesesProjecte[[#This Row],[Importe imputable a la subvención municipal ]],DespesesProjecte[[#This Row],[Importe de la aportación / Cofinanciación de la organización]])","v":0}]
[null,null,null,{"$f":"SUM(DespesesProjecte[[#This Row],[Importe imputable a la subvención municipal ]],DespesesProjecte[[#This Row],[Importe de la aportación / Cofinanciación de la organización]])","v":0}]
[null,null,null,{"$f":"SUM(DespesesProjecte[[#This Row],[Importe imputable a la subvención municipal ]],DespesesProjecte[[#This Row],[Importe de la aportación / Cofinanciación de la organización]])","v":0}]
["D7. Ayudas al transporte para los/las participantes de los proyectos en caso de que sea necesario de manera justificada",{"$f":"SUM(B46:B48)","v":0},{"$f":"SUM(C46:C48)","v":0},{"$f":"SUM(DespesesProjecte[[#This Row],[Importe imputable a la subvención municipal ]],DespesesProjecte[[#This Row],[Importe de la aportación / Cofinanciación de la organización]])","v":0}]
[null,null,null,{"$f":"SUM(DespesesProjecte[[#This Row],[Importe imputable a la subvención municipal ]],DespesesProjecte[[#This Row],[Importe de la aportación / Cofinanciación de la organización]])","v":0}]
[null,null,null,{"$f":"SUM(DespesesProjecte[[#This Row],[Importe imputable a la subvención municipal ]],DespesesProjecte[[#This Row],[Importe de la aportación / Cofinanciación de la organización]])","v":0}]
[null,null,null,{"$f":"SUM(DespesesProjecte[[#This Row],[Importe imputable a la subvención municipal ]],DespesesProjecte[[#This Row],[Importe de la aportación / Cofinanciación de la organización]])","v":0}]
["D8. Viajes y desplazamientos imputables a las actividades del proyecto",{"$f":"SUM(B50:B52)","v":0},{"$f":"SUM(C50:C52)","v":0},{"$f":"DespesesProjecte[[#This Row],[Importe imputable a la subvención municipal ]]+DespesesProjecte[[#This Row],[Importe de la aportación / Cofinanciación de la organización]]","v":0}]
[null,null,null,{"$f":"SUM(DespesesProjecte[[#This Row],[Importe imputable a la subvención municipal ]],DespesesProjecte[[#This Row],[Importe de la aportación / Cofinanciación de la organización]])","v":0}]
[null,null,null,{"$f":"SUM(DespesesProjecte[[#This Row],[Importe imputable a la subvención municipal ]],DespesesProjecte[[#This Row],[Importe de la aportación / Cofinanciación de la organización]])","v":0}]
[null,null,null,{"$f":"SUM(DespesesProjecte[[#This Row],[Importe imputable a la subvención municipal ]],DespesesProjecte[[#This Row],[Importe de la aportación / Cofinanciación de la organización]])","v":0}]
["D9. Tributos, cuando sean abonados directamente por la persona jurídica o física beneficiaria",{"$f":"SUM(B54:B56)","v":0},{"$f":"SUM(C54:C56)","v":0},{"$f":"DespesesProjecte[[#This Row],[Importe imputable a la subvención municipal ]]+DespesesProjecte[[#This Row],[Importe de la aportación / Cofinanciación de la organización]]","v":0}]
[null,null,null,{"$f":"SUM(DespesesProjecte[[#This Row],[Importe imputable a la subvención municipal ]],DespesesProjecte[[#This Row],[Importe de la aportación / Cofinanciación de la organización]])","v":0}]
[null,null,null,{"$f":"SUM(DespesesProjecte[[#This Row],[Importe imputable a la subvención municipal ]],DespesesProjecte[[#This Row],[Importe de la aportación / Cofinanciación de la organización]])","v":0}]
[null,null,null,{"$f":"SUM(DespesesProjecte[[#This Row],[Importe imputable a la subvención municipal ]],DespesesProjecte[[#This Row],[Importe de la aportación / Cofinanciación de la organización]])","v":0}]
["D10. Otros gastos que de manera justificada y por la tipología del proyecto puedan imputarse directamente al proyecto",{"$f":"SUM(B58:B60)","v":0},{"$f":"SUM(C58:C60)","v":0},{"$f":"DespesesProjecte[[#This Row],[Importe imputable a la subvención municipal ]]+DespesesProjecte[[#This Row],[Importe de la aportación / Cofinanciación de la organización]]","v":0}]
[null,null,null,{"$f":"SUM(DespesesProjecte[[#This Row],[Importe imputable a la subvención municipal ]],DespesesProjecte[[#This Row],[Importe de la aportación / Cofinanciación de la organización]])","v":0}]
[null,null,null,{"$f":"SUM(DespesesProjecte[[#This Row],[Importe imputable a la subvención municipal ]],DespesesProjecte[[#This Row],[Importe de la aportación / Cofinanciación de la organización]])","v":0}]
[null,null,null,{"$f":"SUM(DespesesProjecte[[#This Row],[Importe imputable a la subvención municipal ]],DespesesProjecte[[#This Row],[Importe de la aportación / Cofinanciación de la organización]])","v":0}]
["TOTAL DE OTROS GASTOS DIRECTOS",{"$f":"B25+B29+B33+B37+B41+B45+B49+B53+B57","v":0},{"$f":"C25+C29+C33+C37+C41+C45+C49+C53+C57","v":0},{"$f":"D25+D29+D33+D37+D41+D45+D49+D53+D57","v":0}]
["TOTAL GASTOS DIRECTOS  (aquellos que se identifican directamente con el proyecto subvencionable)",{"$f":"B24+B61","v":0},{"$f":"C24+C61","v":0},{"$f":"D24+D61","v":0}]
["I1. Personal de soporte al proyecto (nóminas y seguridad social)",{"$f":"SUM(B64:B66)","v":0},{"$f":"SUM(C64:C66)","v":0},{"$f":"SUM(DespesesProjecte[[#This Row],[Importe imputable a la subvención municipal ]],DespesesProjecte[[#This Row],[Importe de la aportación / Cofinanciación de la organización]])","v":0}]
[null,null,null,{"$f":"SUM(DespesesProjecte[[#This Row],[Importe imputable a la subvención municipal ]],DespesesProjecte[[#This Row],[Importe de la aportación / Cofinanciación de la organización]])","v":0}]
[null,null,null,{"$f":"SUM(DespesesProjecte[[#This Row],[Importe imputable a la subvención municipal ]],DespesesProjecte[[#This Row],[Importe de la aportación / Cofinanciación de la organización]])","v":0}]
[null,null,null,{"$f":"SUM(DespesesProjecte[[#This Row],[Importe imputable a la subvención municipal ]],DespesesProjecte[[#This Row],[Importe de la aportación / Cofinanciación de la organización]])","v":0}]
["I2. Seguros",{"$f":"SUM(B68:B70)","v":0},{"$f":"SUM(C68:C70)","v":0},{"$f":"SUM(DespesesProjecte[[#This Row],[Importe imputable a la subvención municipal ]],DespesesProjecte[[#This Row],[Importe de la aportación / Cofinanciación de la organización]])","v":0}]
[null,null,null,{"$f":"SUM(DespesesProjecte[[#This Row],[Importe imputable a la subvención municipal ]],DespesesProjecte[[#This Row],[Importe de la aportación / Cofinanciación de la organización]])","v":0}]
[null,null,null,{"$f":"SUM(DespesesProjecte[[#This Row],[Importe imputable a la subvención municipal ]],DespesesProjecte[[#This Row],[Importe de la aportación / Cofinanciación de la organización]])","v":0}]
[null,null,null,{"$f":"SUM(DespesesProjecte[[#This Row],[Importe imputable a la subvención municipal ]],DespesesProjecte[[#This Row],[Importe de la aportación / Cofinanciación de la organización]])","v":0}]
["I3. Amortización",{"$f":"SUM(B72:B74)","v":0},{"$f":"SUM(C72:C74)","v":0},{"$f":"SUM(DespesesProjecte[[#This Row],[Importe imputable a la subvención municipal ]],DespesesProjecte[[#This Row],[Importe de la aportación / Cofinanciación de la organización]])","v":0}]
[null,null,null,{"$f":"SUM(DespesesProjecte[[#This Row],[Importe imputable a la subvención municipal ]],DespesesProjecte[[#This Row],[Importe de la aportación / Cofinanciación de la organización]])","v":0}]
[null,null,null,{"$f":"SUM(DespesesProjecte[[#This Row],[Importe imputable a la subvención municipal ]],DespesesProjecte[[#This Row],[Importe de la aportación / Cofinanciación de la organización]])","v":0}]
[null,null,null,{"$f":"SUM(DespesesProjecte[[#This Row],[Importe imputable a la subvención municipal ]],DespesesProjecte[[#This Row],[Importe de la aportación / Cofinanciación de la organización]])","v":0}]
["I4. Alquiler de bienes inmuebles",{"$f":"SUM(B76:B78)","v":0},{"$f":"SUM(C76:C78)","v":0},{"$f":"SUM(DespesesProjecte[[#This Row],[Importe imputable a la subvención municipal ]],DespesesProjecte[[#This Row],[Importe de la aportación / Cofinanciación de la organización]])","v":0}]
[null,null,null,{"$f":"SUM(DespesesProjecte[[#This Row],[Importe imputable a la subvención municipal ]],DespesesProjecte[[#This Row],[Importe de la aportación / Cofinanciación de la organización]])","v":0}]
[null,null,null,{"$f":"SUM(DespesesProjecte[[#This Row],[Importe imputable a la subvención municipal ]],DespesesProjecte[[#This Row],[Importe de la aportación / Cofinanciación de la organización]])","v":0}]
[null,null,null,{"$f":"SUM(DespesesProjecte[[#This Row],[Importe imputable a la subvención municipal ]],DespesesProjecte[[#This Row],[Importe de la aportación / Cofinanciación de la organización]])","v":0}]
["I5. Adquisición de materiales y bienes consumibles parcialmente imputables al proyecto",{"$f":"SUM(B80:B82)","v":0},{"$f":"SUM(C80:C82)","v":0},{"$f":"SUM(DespesesProjecte[[#This Row],[Importe imputable a la subvención municipal ]],DespesesProjecte[[#This Row],[Importe de la aportación / Cofinanciación de la organización]])","v":0}]
[null,null,null,{"$f":"SUM(DespesesProjecte[[#This Row],[Importe imputable a la subvención municipal ]],DespesesProjecte[[#This Row],[Importe de la aportación / Cofinanciación de la organización]])","v":0}]
[null,null,null,{"$f":"SUM(DespesesProjecte[[#This Row],[Importe imputable a la subvención municipal ]],DespesesProjecte[[#This Row],[Importe de la aportación / Cofinanciación de la organización]])","v":0}]
[null,null,null,{"$f":"SUM(DespesesProjecte[[#This Row],[Importe imputable a la subvención municipal ]],DespesesProjecte[[#This Row],[Importe de la aportación / Cofinanciación de la organización]])","v":0}]
["I6. Mantenimiento de edificios y/o instalaciones",{"$f":"SUM(B84:B86)","v":0},{"$f":"SUM(C84:C86)","v":0},{"$f":"SUM(DespesesProjecte[[#This Row],[Importe imputable a la subvención municipal ]],DespesesProjecte[[#This Row],[Importe de la aportación / Cofinanciación de la organización]])","v":0}]
[null,null,null,{"$f":"SUM(DespesesProjecte[[#This Row],[Importe imputable a la subvención municipal ]],DespesesProjecte[[#This Row],[Importe de la aportación / Cofinanciación de la organización]])","v":0}]
[null,null,null,{"$f":"SUM(DespesesProjecte[[#This Row],[Importe imputable a la subvención municipal ]],DespesesProjecte[[#This Row],[Importe de la aportación / Cofinanciación de la organización]])","v":0}]
[null,null,null,{"$f":"SUM(DespesesProjecte[[#This Row],[Importe imputable a la subvención municipal ]],DespesesProjecte[[#This Row],[Importe de la aportación / Cofinanciación de la organización]])","v":0}]
["I7. Comunicaciones (teléfono, correos, conexión a internet)",{"$f":"SUM(B88:B90)","v":0},{"$f":"SUM(C88:C90)","v":0},{"$f":"SUM(DespesesProjecte[[#This Row],[Importe imputable a la subvención municipal ]],DespesesProjecte[[#This Row],[Importe de la aportación / Cofinanciación de la organización]])","v":0}]
[null,null,null,{"$f":"SUM(DespesesProjecte[[#This Row],[Importe imputable a la subvención municipal ]],DespesesProjecte[[#This Row],[Importe de la aportación / Cofinanciación de la organización]])","v":0}]
[null,null,null,{"$f":"SUM(DespesesProjecte[[#This Row],[Importe imputable a la subvención municipal ]],DespesesProjecte[[#This Row],[Importe de la aportación / Cofinanciación de la organización]])","v":0}]
[null,null,null,{"$f":"SUM(DespesesProjecte[[#This Row],[Importe imputable a la subvención municipal ]],DespesesProjecte[[#This Row],[Importe de la aportación / Cofinanciación de la organización]])","v":0}]
["I8. Gastos financieros",{"$f":"SUM(B92:B94)","v":0},{"$f":"SUM(C92:C94)","v":0},{"$f":"SUM(DespesesProjecte[[#This Row],[Importe imputable a la subvención municipal ]],DespesesProjecte[[#This Row],[Importe de la aportación / Cofinanciación de la organización]])","v":0}]
[null,null,null,{"$f":"SUM(DespesesProjecte[[#This Row],[Importe imputable a la subvención municipal ]],DespesesProjecte[[#This Row],[Importe de la aportación / Cofinanciación de la organización]])","v":0}]
[null,null,null,{"$f":"SUM(DespesesProjecte[[#This Row],[Importe imputable a la subvención municipal ]],DespesesProjecte[[#This Row],[Importe de la aportación / Cofinanciación de la organización]])","v":0}]
[null,null,null,{"$f":"SUM(DespesesProjecte[[#This Row],[Importe imputable a la subvención municipal ]],DespesesProjecte[[#This Row],[Importe de la aportación / Cofinanciación de la organización]])","v":0}]
["I9. Suministros",{"$f":"SUM(B96:B98)","v":0},{"$f":"SUM(C96:C98)","v":0},{"$f":"SUM(DespesesProjecte[[#This Row],[Importe imputable a la subvención municipal ]],DespesesProjecte[[#This Row],[Importe de la aportación / Cofinanciación de la organización]])","v":0}]
[null,null,null,{"$f":"SUM(DespesesProjecte[[#This Row],[Importe imputable a la subvención municipal ]],DespesesProjecte[[#This Row],[Importe de la aportación / Cofinanciación de la organización]])","v":0}]
[null,null,null,{"$f":"SUM(DespesesProjecte[[#This Row],[Importe imputable a la subvención municipal ]],DespesesProjecte[[#This Row],[Importe de la aportación / Cofinanciación de la organización]])","v":0}]
[null,null,null,{"$f":"SUM(DespesesProjecte[[#This Row],[Importe imputable a la subvención municipal ]],DespesesProjecte[[#This Row],[Importe de la aportación / Cofinanciación de la organización]])","v":0}]
["I10. Trabajo realizado por otras empresas, parcialmente imputables al proyecto (limpieza, seguridad...)",{"$f":"SUM(B100:B102)","v":0},{"$f":"SUM(C100:C102)","v":0},{"$f":"SUM(DespesesProjecte[[#This Row],[Importe imputable a la subvención municipal ]],DespesesProjecte[[#This Row],[Importe de la aportación / Cofinanciación de la organización]])","v":0}]
[null,null,null,{"$f":"SUM(DespesesProjecte[[#This Row],[Importe imputable a la subvención municipal ]],DespesesProjecte[[#This Row],[Importe de la aportación / Cofinanciación de la organización]])","v":0}]
[null,null,null,{"$f":"SUM(DespesesProjecte[[#This Row],[Importe imputable a la subvención municipal ]],DespesesProjecte[[#This Row],[Importe de la aportación / Cofinanciación de la organización]])","v":0}]
[null,null,null,{"$f":"SUM(DespesesProjecte[[#This Row],[Importe imputable a la subvención municipal ]],DespesesProjecte[[#This Row],[Importe de la aportación / Cofinanciación de la organización]])","v":0}]
["TOTAL GASTOS INDIRECTOS (se podrán asignar al proyecto subvencionable utilizando un porcentaje de asignación) - Máximo 10 % del importe imputable a la subvención municipal",{"$f":"SUM(B63,B67,B71,B75,B79,B83,B87,B91,B95,B99)","v":0},{"$f":"SUM(C63,C67,C71,C75,C79,C83,C87,C91,C95,C99)","v":0},{"$f":"SUM(D63,D67,D71,D75,D79,D83,D87,D91,D95,D99)","v":0}]
["TOTAL DE GASTOS PREVISTOS",{"$f":"SUM(B103,B62)","v":0},{"$f":"SUM(C103,C62)","v":0},{"$f":"SUM(D103,D62)","v":0}]
[]
["Atención: En caso de persones jurídiques no firme este documento ahora.\nMás adelante firmará digitalmente este documento."]
[]
["Modalidad Bc. Proyectos de implementación y acciones de intercooperación significativos para el desarrollo de los proyectos de ciudad de la #ESSBCN2030"]
[" 1. La cuantía de la subvención otorgada no superará el 80% del gasto total del proyecto a subvencionar."]
[" 2. El importe máximo de subvención para esta modalidad Bc es 18.000€.\n"]
[" 3. En el caso que la solicitud presentada sobrepase el importe máximo, se considerará como importe solicitado el máximo de lo establecido en la convocatoria."]
[" 4. En esta modalidad se aceptará la imputación de gastos de personal propio y directamente vinculado al proyecto de las organizaciones participantes del acuerdo de intercooperación presentado para el desarrollo del proyecto subvencionable."]
[" 5. Se limita con un máximo del 40% el importe de la subvención para gastos de personal propio asignado directamente al proyecto subvencionado."]
[" 6. En el caso de alquileres de inmuebles, los gastos de alquiler se imputarán a los gastos indirectos, con el límite establecido para estos gastos indirectos."]
[" 7. Para las subvenciones otorgadas por importe igual o superior a 20.000 € es necesario un informe de auditoría para la justificación. El importe de este informe se considera gasto subvencionable, con un límite máximo de 1.500€."]
[" 8. Son imputables en esta modalidad los gastos indirectos, detallados en el apartado 13.3. de las bases reguladoras; con un máximo del 10% del importe de la subvención.\nEl carácter subvencionable del gasto de amortización estará sujeto a las condiciones siguientes:\n> Que las subvenciones no hayan contribuído a la compra de los bienes.\n> Que la amortización se calcule de conformidad con las normas de contabilidad generalmente aceptadas.\n> Que el coste se refiera al período subvencionable.\n\n"]
[" 9. No se admitirá ninguna propuesta en esta submodalidad que no presente el acuerdo de colaboración por personas jurídicas por el proyecto presentado para recibir esta subvención."]
[" 10. Cuando se deba hacer gastos de más de 15.000 €, sin IVA, en el caso de prestaciones de servicios o entrega de bienes y para aquellos gastos de más de 40.000 €,  sin IVA, en el caso de ejecución de obras, se deberán de incorporar tres presupuestos solicitados y argumentar el motivo de la adjudicación en el caso de no ser la propuesta más ventajosa económicamente."]
[" 11. Los proyectos de esta modalidad tendrán que entregar a su finalización un producto comunicativo, de acuerdo con el contenido establecido en la convocatoria de la subvención."]
[" 12. No serán elegibles facturas de empresas emitidas entre las organizaciones participantes del acuerdo de colaboración."]
[" 13. En ningún caso se considerarán gastos subvencionables:\n> Los impuestos indirectos cuando sean susceptibles de recuperación o compensación.\n> Los gastos de inversión, incluídas las adquisiciones de bienes muebles.\n> Los gastos realizados con fecha anterior al inicio del proyecto y fecha posterior a la finalización del proyecto.\n> Otros gastos que se indiquen en la convocatoria."]
[" 14. La retribución de las personas contratadas en el marco del proyecto subvencionado no puede ser inferior al Salario Mínimo Interprofesional (SMI), ni a la estipulada al correspondiente convenio o marco normativo de referencia (punto 7 de las bases 2025: requisitos de los proyectos)."]
[" 15. Los materiales producidos de difusión, estudios, informes o materiales didácticos utilizados, etc. en el caso de tratarse de gasto elegible de la subvención, deberán tener licencia Creative Commons -Compartir Igual- (share a like) y no podrá tener la condición –Sin Obras Derivadas- (no derivate Works)."]
[" 16. Los proyectos subvencionados deben fomentar actividades de interés público o social, las cuales deben ser gratuitas para las personas participantes o en ningún caso el precio debe suponer un obstáculo para su participación, buscando otras formas de acceso para personas con dificultades económicas. En el caso que haya algún tipo de lucro, deberán revertir en las propias actividades subvencionadas."]
[" 17. El Ayuntamiento de Barcelona y sus entidades municipales en ningún caso subvencionarán el mismo proyecto, ejecutado durante el mismo periodo, por ningún otro procedimiento de concesión que no sea el regulado por las bases reguladoras."]
[" 18. El/la beneficiario/a no podrá alterar en ningún caso el destino de las subvenciones concedidas."]
[" 19. La organización designada como representante de la agrupación será plenamente responsable del proyecto ante el Ayuntamiento respecto al cumplimiento de las obligaciones establecidas en las bases reguladoras, sin perjuicio de la responsabilidad de las otras organizaciones socias de la agrupación, siendo de aplicación los requisitos previstos en el punto 6.1 de las bases reguladoras."]
[" 20. En ningún caso podrán formar parte de la agrupación las organizaciones que hayan recibido otras subvenciones para la ejecución del mismo proyecto de otras administraciones públicas."]